bitfinex-derivatives/quotes_BNBF0:USTF0_20250303
["timestamp","ask_amount","ask_price","bid_price","bid_amount"]
[1740972768042,0.30118646,611.09,609.95,0.32023492]
[1740972768335,0.30118646,611.08,609.95,0.32023492]
[1740972768535,0.30118646,611.1,609.95,0.32023492]
[1740972768734,0.30118646,611.09,609.95,0.32023492]
[1740972768936,0.30118646,611.1,609.95,0.32023492]
[1740972769135,0.30118646,611.09,609.95,0.32023492]
[1740972769440,0.30118646,611.08,609.95,0.32023492]
[1740972769640,0.30118646,611.07,609.95,0.32023492]
[1740972769938,0.30118646,611.06,609.95,0.32023492]
[1740972770139,0.30118646,611.1,609.95,0.32023492]
[1740972770335,0.30118646,611.09,609.95,0.32023492]
[1740972770541,0.30118646,611.1,609.95,0.32023492]
[1740972770839,0.30118646,611.09,609.95,0.32023492]
[1740972771040,0.30118646,611.1,609.95,0.32023492]
[1740972771233,2.177,611.11,609.95,0.32023492]
[1740972771539,0.30111329,611.1,609.95,0.32023492]
[1740972771941,2.177,611.11,609.95,0.32023492]
[1740972772640,1.094,611.1,609.95,0.32023492]
[1740972774042,0.30107019,611.09,609.95,0.32023492]
[1740972777247,1.094,611.1,609.95,0.32023492]
[1740972777444,0.30103821,611.09,609.95,0.32023492]
[1740972778043,1.029,611.08,609.95,0.32023492]
[1740972778242,0.30103821,611.07,609.95,0.32023492]
[1740972778746,1.029,611.08,609.95,0.32023492]
[1740972780248,0.30101373,611.07,609.95,0.32023492]
[1740972780749,1.029,611.08,609.95,0.32023492]
[1740972781344,0.30101088,611.07,609.95,0.32023492]
[1740972781848,2.313,611.08,609.95,0.32023492]
[1740972782045,0.3010135,611.07,609.95,0.32023492]
[1740972782548,2.313,611.08,609.95,0.32023492]
[1740972785348,3.937,611.08,609.95,0.32023492]
[1740972788847,5.288,611.08,609.95,0.32023492]
[1740972794649,6.586,611.08,609.95,0.32023492]
[1740972797157,6.586,611.08,609.97,1.21664196]
[1740972797355,6.586,611.08,609.99,0.32787422]
[1740972808259,6.586,611.08,610.02,1.21664196]
[1740972808459,6.586,611.08,610.04,0.32784735]
[1740972813465,6.586,611.08,610.38,1.21664196]
[1740972814470,6.586,611.08,610.39,0.32765936]
[1740972833992,6.586,611.08,610.44,1.21664196]
[1740972834787,6.586,611.08,610.45,0.32762716]
[1740972836091,6.586,611.08,610.46,1.21664196]
[1740972836395,6.586,611.08,610.47,0.32761642]
[1740972838399,6.586,611.08,610.53,1.21664196]
[1740972838698,6.586,611.08,610.54,0.32757886]
[1740972839096,1.029,611.08,610.54,0.32757886]
[1740972844001,1.029,611.08,610.59,1.21664196]
[1740972844201,1.029,611.08,610.6,0.32754667]
[1740972844400,4.878,611.09,610.6,0.32754667]
[1740972846205,4.878,611.09,610.7,1.21664196]
[1740972846602,4.878,611.09,610.71,0.32748767]
[1740972856214,3.641,611.09,610.71,0.32748767]
[1740972859320,3.641,611.09,610.72,1.21664196]
[1740972859521,3.641,611.09,610.73,0.32747695]
[1740972861818,3.641,611.09,610.73,1.54411891]
[1740972863520,3.641,611.09,610.73,0.32747695]
[1740972865919,3.641,611.09,610.76,1.21664196]
[1740972866122,3.641,611.09,610.77,0.3274555]
[1740972867420,2.547,611.09,610.77,0.3274555]
[1740972871326,1.329,611.09,610.77,0.3274555]
[1740972872222,1.268,611.26,610.77,0.3274555]
[1740972879638,1.323,611.27,610.77,0.3274555]
[1740972908470,4.423,611.32,610.77,0.3274555]
[1740972915176,5.701,611.32,610.77,0.3274555]
[1740972934484,5.701,611.32,610.89,1.21664196]
[1740972934684,1.278,611.32,610.9,0.32738582]
[1740972938985,1.278,611.32,610.92,1.21664196]
[1740972939185,1.278,611.32,610.93,0.32736974]
[1740972942184,4.543,611.45,610.93,0.32736974]
[1740972947090,4.543,611.45,610.93,1.5440117]
[1740972948991,3.425,611.45,610.93,1.5440117]
[1740972949390,3.425,611.45,610.93,0.32736974]
[1740972952092,3.425,611.45,610.94,1.21664196]
[1740972952392,3.425,611.45,610.95,0.32735903]
[1740972956894,2.416,611.45,610.95,0.32735903]
[1740972962001,1.118,611.45,610.95,0.32735903]
[1740972966908,1.199,611.48,610.95,0.32735903]
[1740972971115,1.253,611.49,610.95,0.32735903]
[1740972977015,1.253,611.49,611.0,1.21664196]
[1740972977215,1.253,611.49,611.01,0.32732688]
[1740972979720,1.253,611.49,611.08,1.21664196]
[1740972979919,1.253,611.49,611.09,0.32728403]
[1740973022053,3.74,611.64,611.09,0.32728403]
[1740973079909,3.74,611.64,611.1,1.21664196]
[1740973080209,1.41840856,612.67,611.11,0.32727332]
[1740973080409,0.30056937,612.66,611.11,0.32727332]
[1740973080609,0.62702003,612.65,611.11,0.32727332]
[1740973080811,0.30056937,612.64,611.11,0.32727332]
[1740973081104,0.62704502,612.63,611.11,0.32727332]
[1740973081409,0.62705035,612.62,611.11,0.32727332]
[1740973081612,0.62705568,612.61,611.11,0.32727332]
[1740973081816,0.627061,612.6,611.11,0.32727332]
[1740973082014,0.3005837,612.59,611.11,0.32727332]
[1740973082209,0.32648796,612.58,611.11,0.32727332]
[1740973082412,0.3005837,612.57,611.11,0.32727332]
[1740973083315,1.4525837,612.57,611.11,0.32727332]
[1740973083617,0.3005837,612.56,611.11,0.32727332]
[1740973083916,0.30056962,612.55,611.11,0.32727332]
[1740973084111,0.30056962,612.56,611.11,0.32727332]
[1740973084310,0.30056962,612.55,611.11,0.32727332]
[1740973084514,0.30056962,612.56,611.11,0.32727332]
[1740973084713,0.30056962,612.55,611.11,0.32727332]
[1740973084916,0.30056962,612.54,611.11,0.32727332]
[1740973085217,0.30056962,612.53,611.11,0.32727332]
[1740973085420,0.30056962,612.56,611.11,0.32727332]
[1740973085623,0.30056962,612.55,611.11,0.32727332]
[1740973085822,0.30056962,612.54,611.11,0.32727332]
[1740973086022,0.30056962,612.53,611.11,0.32727332]
[1740973086218,0.30056962,612.56,611.11,0.32727332]
[1740973086416,0.30056962,612.55,611.11,0.32727332]
[1740973086621,0.30056962,612.56,611.11,0.32727332]
[1740973086818,0.30056962,612.55,611.11,0.32727332]
[1740973087021,3.557,612.57,611.11,0.32727332]
[1740973087216,0.30058444,612.56,611.11,0.32727332]
[1740973088824,0.30058444,612.55,611.11,0.32727332]
[1740973089024,0.30058444,612.54,611.11,0.32727332]
[1740973089220,0.30058444,612.53,611.11,0.32727332]
[1740973090325,0.30063037,612.52,611.11,0.32727332]
[1740973090525,0.30063037,612.53,611.11,0.32727332]
[1740973090725,0.30063037,612.52,611.11,0.32727332]
[1740973090924,0.32650928,612.54,611.11,0.32727332]
[1740973090925,0.30063037,612.51,611.11,0.32727332]
[1740973091124,0.30063037,612.5,611.11,0.32727332]
[1740973091327,0.30063037,612.49,611.11,0.32727332]
[1740973091525,0.32650928,612.54,611.11,0.32727332]
[1740973091526,0.30063037,612.53,611.11,0.32727332]
[1740973091729,0.62715032,612.52,611.11,0.32727332]
[1740973091928,0.62716783,612.51,611.11,0.32727332]
[1740973092129,0.30064255,612.5,611.11,0.32727332]
[1740973095128,0.30064746,612.49,611.11,0.32727332]
[1740973095325,0.30064746,612.5,611.11,0.32727332]
[1740973095529,0.30064746,612.49,611.11,0.32727332]
[1740973095730,0.30064746,612.48,611.11,0.32727332]
[1740973095925,0.32652528,612.51,611.11,0.32727332]
[1740973095926,0.30064746,612.47,611.11,0.32727332]
[1740973096130,0.30064746,612.46,611.11,0.32727332]
[1740973096430,0.30064746,612.45,611.11,0.32727332]
[1740973096633,0.32652528,612.51,611.11,0.32727332]
[1740973096833,0.30064961,612.5,611.11,0.32727332]
[1740973097033,0.30064961,612.49,611.11,0.32727332]
[1740973097234,0.30064961,612.48,611.11,0.32727332]
[1740973097435,0.30064961,612.47,611.11,0.32727332]
[1740973097635,0.30064961,612.46,611.11,0.32727332]
[1740973097935,0.32652528,612.51,611.11,0.32727332]
[1740973097936,0.30064961,612.45,611.11,0.32727332]
[1740973098136,0.30064961,612.44,611.11,0.32727332]
[1740973098337,0.30064961,612.43,611.11,0.32727332]
[1740973098534,0.30064961,612.42,611.11,0.32727332]
[1740973098835,0.30064961,612.41,611.11,0.32727332]
[1740973099030,0.3265626,612.44,611.11,0.32727332]
[1740973099031,0.30064961,612.4,611.11,0.32727332]
[1740973099234,0.30064961,612.39,611.11,0.32727332]
[1740973099432,0.30064961,612.38,611.11,0.32727332]
[1740973099633,0.30064961,612.37,611.11,0.32727332]
[1740973099934,0.30066331,612.36,611.11,0.32727332]
[1740973100129,0.30066331,612.35,611.11,0.32727332]
[1740973100329,0.30066331,612.43,611.11,0.32727332]
[1740973100534,1.606,612.34,611.11,0.32727332]
[1740973100838,0.30066331,612.33,611.11,0.32727332]
[1740973101635,0.30066462,612.32,611.11,0.32727332]
[1740973101838,0.30066462,612.31,611.11,0.32727332]
[1740973102031,0.30066462,612.3,611.11,0.32727332]
[1740973102236,0.30066462,612.33,611.11,0.32727332]
[1740973102531,0.30066462,612.32,611.11,0.32727332]
[1740973102737,0.30066462,612.31,611.11,0.32727332]
[1740973103037,1.606,612.34,611.11,0.32727332]
[1740973103038,0.30066462,612.3,611.11,0.32727332]
[1740973103237,0.30066462,612.33,611.11,0.32727332]
[1740973103537,0.30066462,612.32,611.11,0.32727332]
[1740973103736,0.30066462,612.31,611.11,0.32727332]
[1740973103937,0.30066462,612.3,611.11,0.32727332]
[1740973104236,0.30066462,612.29,611.11,0.32727332]
[1740973104537,0.30066462,612.28,611.11,0.32727332]
[1740973104729,0.30066057,612.27,611.11,0.32727332]
[1740973104930,0.30066057,612.26,611.11,0.32727332]
[1740973105133,0.30066057,612.25,611.11,0.32727332]
[1740973105332,0.30066057,612.33,611.11,0.32727332]
[1740973105536,0.30066057,612.32,611.11,0.32727332]
[1740973105737,1.606,612.34,611.11,0.32727332]
[1740973105738,0.30066057,612.31,611.11,0.32727332]
[1740973105934,0.30066057,612.3,611.11,0.32727332]
[1740973106138,0.30066057,612.33,611.11,0.32727332]
[1740973106340,0.30068153,612.32,611.11,0.32727332]
[1740973106640,0.30068153,612.31,611.11,0.32727332]
[1740973106834,0.30068153,612.3,611.11,0.32727332]
[1740973107038,0.30068153,612.29,611.11,0.32727332]
[1740973107238,0.30068153,612.28,611.11,0.32727332]
[1740973107438,0.30068153,612.27,611.11,0.32727332]
[1740973107635,0.30068153,612.26,611.11,0.32727332]
[1740973109636,1.299,612.25,611.11,0.32727332]
[1740973109841,0.30068153,612.24,611.11,0.32727332]
[1740973111140,0.30068186,612.23,611.11,0.32727332]
[1740973111340,0.30068186,612.24,611.11,0.32727332]
[1740973111543,0.30068186,612.23,611.11,0.32727332]
[1740973111743,0.30068186,612.22,611.11,0.32727332]
[1740973112044,0.30068186,612.21,611.11,0.32727332]
[1740973112246,0.30068186,612.2,611.11,0.32727332]
[1740973112449,0.30068186,612.19,611.11,0.32727332]
[1740973112647,0.30069324,612.18,611.11,0.32727332]
[1740973112850,1.299,612.25,611.11,0.32727332]
[1740973112851,0.30069324,612.17,611.11,0.32727332]
[1740973113051,0.30069324,612.16,611.11,0.32727332]
[1740973113350,0.30069324,612.15,611.11,0.32727332]
[1740973113552,0.30069324,612.14,611.11,0.32727332]
[1740973113751,0.30069324,612.13,611.11,0.32727332]
[1740973113951,0.30069324,612.24,611.11,0.32727332]
[1740973114150,0.30069324,612.23,611.11,0.32727332]
[1740973114352,0.30069324,612.24,611.11,0.32727332]
[1740973114550,0.30069324,612.23,611.11,0.32727332]
[1740973114751,0.30069324,612.24,611.11,0.32727332]
[1740973115052,0.30069324,612.23,611.11,0.32727332]
[1740973115251,0.30069324,612.24,611.11,0.32727332]
[1740973115447,0.30069324,612.23,611.11,0.32727332]
[1740973115653,0.30069324,612.22,611.11,0.32727332]
[1740973115853,0.30069324,612.24,611.11,0.32727332]
[1740973119058,1.299,612.25,611.11,0.32727332]
[1740973119255,0.30069436,612.24,611.11,0.32727332]
[1740973122761,1.386,612.23,611.11,0.32727332]
[1740973122963,0.30069436,612.22,611.11,0.32727332]
[1740973123867,1.386,612.23,611.11,0.32727332]
[1740973124060,0.30059847,612.22,611.11,0.32727332]
[1740973126973,0.902,612.21,611.11,0.32727332]
[1740973128870,0.3006028,612.2,611.11,0.32727332]
[1740973133079,1.4446028,612.2,611.11,0.32727332]
[1740973133374,0.3006028,612.19,611.11,0.32727332]
[1740973133579,0.30061984,612.18,611.11,0.32727332]
[1740973133879,0.30061984,612.17,611.11,0.32727332]
[1740973134080,0.30061984,612.19,611.11,0.32727332]
[1740973134281,0.30061984,612.18,611.11,0.32727332]
[1740973134475,0.30061984,612.17,611.11,0.32727332]
[1740973134681,0.30061984,612.16,611.11,0.32727332]
[1740973134985,0.30061984,612.15,611.11,0.32727332]
[1740973135282,1.144,612.2,611.11,0.32727332]
[1740973135283,0.30061978,612.14,611.11,0.32727332]
[1740973135479,0.30061978,612.19,611.11,0.32727332]
[1740973135684,0.30061978,612.18,611.11,0.32727332]
[1740973135884,0.30061978,612.17,611.11,0.32727332]
[1740973136086,0.30061978,612.19,611.11,0.32727332]
[1740973136286,0.30061978,612.18,611.11,0.32727332]
[1740973136485,1.144,612.2,611.11,0.32727332]
[1740973136486,0.30061978,612.17,611.11,0.32727332]
[1740973136681,0.30061978,612.19,611.11,0.32727332]
[1740973136882,0.30061978,612.16,611.11,0.32727332]
[1740973137086,0.30061978,612.15,611.11,0.32727332]
[1740973137388,0.30061978,612.14,611.11,0.32727332]
[1740973137586,0.30061978,612.13,611.11,0.32727332]
[1740973137788,0.30061978,612.12,611.11,0.32727332]
[1740973137981,0.30061978,612.11,611.11,0.32727332]
[1740973138184,0.30061978,612.1,611.11,0.32727332]
[1740973138384,0.30061978,612.09,611.11,0.32727332]
[1740973138588,0.30061978,612.08,611.11,0.32727332]
[1740973138788,1.144,612.2,611.11,0.32727332]
[1740973138987,1.14,612.08,611.11,0.32727332]
[1740973139991,0.30061025,612.07,611.11,0.32727332]
[1740973144097,1.23261025,612.07,611.11,0.32727332]
[1740973144297,0.932,612.07,611.11,0.32727332]
[1740973144497,0.30055176,612.06,611.11,0.32727332]
[1740973147695,0.3005545,612.05,611.11,0.32727332]
[1740973147899,0.3005545,612.04,611.11,0.32727332]
[1740973148294,0.995,612.05,611.11,0.32727332]
[1740973151603,0.30061016,612.04,611.11,0.32727332]
[1740973155902,0.30069197,612.03,611.11,0.32727332]
[1740973156208,0.30069197,612.02,611.11,0.32727332]
[1740973156405,0.30069197,612.01,611.11,0.32727332]
[1740973156602,0.30069197,612.0,611.11,0.00027332]
[1740973156804,0.30069197,611.99,611.11,0.00027332]
[1740973157006,0.30069197,612.04,611.11,0.00027332]
[1740973157203,0.30069197,612.03,611.11,0.00027332]
[1740973157405,0.30069422,612.02,611.11,0.00027332]
[1740973157605,0.30069422,612.04,611.11,0.00027332]
[1740973157807,0.30069422,612.03,611.11,0.00027332]
[1740973158002,0.30069422,612.02,611.11,0.00027332]
[1740973158207,0.995,612.05,611.11,0.00027332]
[1740973158208,0.30069422,612.01,611.11,0.00027332]
[1740973158510,0.30069422,612.0,611.11,0.00027332]
[1740973158710,0.30069422,612.04,611.11,0.00027332]
[1740973158908,0.30069422,612.03,611.11,0.00027332]
[1740973159106,0.30069422,612.02,611.11,0.00027332]
[1740973159305,0.30069422,612.04,611.11,0.00027332]
[1740973159505,0.30069422,612.03,611.11,0.00027332]
[1740973159706,0.30069422,612.02,611.11,0.00027332]
[1740973159911,0.30069422,612.04,611.11,0.00027332]
[1740973160110,0.30069422,612.03,611.11,0.00027332]
[1740973160410,0.995,612.05,611.11,0.00027332]
[1740973160411,0.30069422,612.02,611.11,0.00027332]
[1740973160607,0.30069422,612.04,611.11,0.00027332]
[1740973160911,0.30069422,612.03,611.11,0.00027332]
[1740973161114,0.995,612.05,611.11,0.00027332]
[1740973161115,0.30069422,612.04,611.11,0.00027332]
[1740973161314,0.30069422,612.03,611.11,0.00027332]
[1740973161510,0.30069422,612.02,611.11,0.00027332]
[1740973161709,0.995,612.05,611.11,0.00027332]
[1740973161710,0.30069422,612.01,611.11,0.00027332]
[1740973161915,0.30069422,612.0,611.11,0.00027332]
[1740973162514,0.30069422,611.99,611.11,0.00027332]
[1740973162714,0.30069422,611.98,611.11,0.00027332]
[1740973163014,0.30069422,611.97,611.11,0.00027332]
[1740973163215,0.30069422,612.04,611.11,0.00027332]
[1740973163518,0.995,612.05,611.11,0.00027332]
[1740973163519,0.30069422,612.03,611.11,0.00027332]
[1740973163716,0.30069422,612.02,611.11,0.00027332]
[1740973163916,0.3006608,612.01,611.11,0.00027332]
[1740973164110,0.3006608,612.0,611.11,0.00027332]
[1740973164313,0.3006608,611.99,611.11,0.00027332]
[1740973164513,0.3006608,612.04,611.11,0.00027332]
[1740973164711,0.3006608,612.03,611.11,0.00027332]
[1740973164916,0.3006608,612.02,611.11,0.00027332]
[1740973165117,0.3006608,612.01,611.11,0.00027332]
[1740973165415,0.3006608,612.0,611.11,0.00027332]
[1740973165619,0.3006608,611.99,611.11,0.00027332]
[1740973165916,0.3006608,611.98,611.11,0.00027332]
[1740973166218,0.3006608,611.97,611.11,0.00027332]
[1740973171212,1.076,611.96,611.11,0.00027332]
[1740973171417,0.3006608,611.95,611.11,0.00027332]
[1740973172029,0.30063819,611.94,611.11,0.00027332]
[1740973172318,0.30063819,611.93,611.11,0.00027332]
[1740973172519,0.30063819,611.92,611.11,0.00027332]
[1740973172719,0.30063819,611.91,611.11,0.00027332]
[1740973173018,0.30063819,611.9,611.11,0.00027332]
[1740973173214,0.30063819,611.95,611.11,0.00027332]
[1740973173418,0.30063819,611.94,611.11,0.00027332]
[1740973173619,0.30063819,611.93,611.11,0.00027332]
[1740973173820,0.30063819,611.95,611.11,0.00027332]
[1740973174016,0.30063819,611.94,611.11,0.00027332]
[1740973174219,0.30063819,611.93,611.11,0.00027332]
[1740973174415,0.30063819,611.92,611.11,0.00027332]
[1740973174621,0.30063819,611.91,611.11,0.00027332]
[1740973174820,0.30063819,611.93,611.11,0.00027332]
[1740973175018,0.30063819,611.92,611.11,0.00027332]
[1740973175214,0.30063039,611.91,611.11,0.00027332]
[1740973175418,0.30063039,611.9,611.11,0.00027332]
[1740973175720,0.30063039,611.89,611.11,0.00027332]
[1740973175920,0.30063039,611.88,611.11,0.00027332]
[1740973176117,0.30063039,611.93,611.11,0.00027332]
[1740973176318,0.30063039,611.92,611.11,0.00027332]
[1740973176520,1.112,611.94,611.11,0.00027332]
[1740973176521,0.30063039,611.91,611.11,0.00027332]
[1740973176719,0.30063039,611.9,611.11,0.00027332]
[1740973176921,0.30063039,611.93,611.11,0.00027332]
[1740973178325,1.112,611.94,611.11,0.00027332]
[1740973178524,0.30062706,611.93,611.11,0.00027332]
[1740973183326,0.3006574,611.92,611.11,0.00027332]
[1740973183526,0.3006574,611.93,611.11,0.00027332]
[1740973183722,0.3006574,611.92,611.11,0.00027332]
[1740973184026,0.3006574,611.91,611.11,0.00027332]
[1740973184227,0.3006574,611.9,611.11,0.00027332]
[1740973184427,1.112,611.94,611.11,0.00027332]
[1740973184428,0.3006574,611.89,611.11,0.00027332]
[1740973184626,0.3006574,611.88,611.11,0.00027332]
[1740973184824,1.112,611.94,611.11,0.00027332]
[1740973185022,0.30066483,611.93,611.11,0.00027332]
[1740973188332,1.219,611.92,611.11,0.00027332]
[1740973188531,0.30066483,611.91,611.11,0.00027332]
[1740973192334,0.3006651,611.9,611.11,0.00027332]
[1740973192533,0.3006651,611.89,611.11,0.00027332]
[1740973192734,0.3006651,611.88,611.11,0.00027332]
[1740973192934,0.3006651,611.87,611.11,0.00027332]
[1740973193128,0.3006651,611.86,611.11,0.00027332]
[1740973193334,0.3006651,611.85,611.11,0.00027332]
[1740973193531,0.3006651,611.84,611.11,0.00027332]
[1740973193735,0.3006651,611.91,611.11,0.00027332]
[1740973193934,1.233,611.9,611.11,0.00027332]
[1740973194134,0.3006654,611.89,611.11,0.00027332]
[1740973194335,1.233,611.9,611.11,0.00027332]
[1740973194536,0.30065642,611.88,611.11,0.00027332]
[1740973194836,1.233,611.9,611.11,0.00027332]
[1740973195136,0.30065805,611.89,611.11,0.00027332]
[1740973196531,0.30065896,611.88,611.11,0.00027332]
[1740973196735,0.30065896,611.87,611.11,0.00027332]
[1740973196929,0.30065896,611.86,611.11,0.00027332]
[1740973197132,0.30065896,611.85,611.11,0.00027332]
[1740973197330,1.233,611.9,611.11,0.00027332]
[1740973197532,0.30065843,611.89,611.11,0.00027332]
[1740973198131,1.233,611.9,611.11,0.00027332]
[1740973198436,1.89866862,611.89,611.11,0.00027332]
[1740973198637,1.598,611.89,611.11,0.00027332]
[1740973201639,0.30066545,611.88,611.11,0.00027332]
[1740973202440,1.304,611.87,611.11,0.00027332]
[1740973202838,0.30067254,611.86,611.11,0.00027332]
[1740973204343,1.304,611.87,611.11,0.00027332]
[1740973204541,0.30067254,611.86,611.11,0.00027332]
[1740973206041,1.304,611.87,611.11,0.00027332]
[1740973206245,0.30067636,611.86,611.11,0.00027332]
[1740973210457,1.304,611.87,611.11,0.00027332]
[1740973210852,0.30067307,611.86,611.11,0.00027332]
[1740973211049,1.304,611.87,611.11,0.00027332]
[1740973211455,0.30067349,611.86,611.11,0.00027332]
[1740973213356,1.304,611.87,611.11,0.00027332]
[1740973216455,0.30060496,611.86,611.11,0.00027332]
[1740973216855,1.304,611.87,611.11,0.00027332]
[1740973218253,0.30064978,611.86,611.11,0.00027332]
[1740973219662,0.889,611.85,611.11,0.00027332]
[1740973220057,0.30065915,611.84,611.11,0.00027332]
[1740973225769,0.986,611.83,611.11,0.00027332]
[1740973225969,0.30065915,611.82,611.11,0.00027332]
[1740973229671,1.23865915,611.82,611.11,0.00027332]
[1740973229868,0.30065915,611.81,611.11,0.00027332]
[1740973230173,0.30079487,611.8,611.11,0.00027332]
[1740973230471,0.30079487,611.79,611.11,0.00027332]
[1740973230666,0.938,611.82,611.11,0.00027332]
[1740973230667,0.30079487,611.81,611.11,0.00027332]
[1740973234765,1.13,611.8,611.11,0.00027332]
[1740973235171,0.30075424,611.79,611.11,0.00027332]
[1740973238471,0.30073948,611.78,611.11,0.00027332]
[1740973238673,0.30073948,611.77,611.11,0.00027332]
[1740973238876,0.30073948,611.76,611.11,0.00027332]
[1740973239073,0.30073948,611.75,611.11,0.00027332]
[1740973239277,0.30073948,611.79,611.11,0.00027332]
[1740973239478,1.13,611.8,611.11,0.00027332]
[1740973239479,0.30073948,611.78,611.11,0.00027332]
[1740973239678,0.30073948,611.77,611.11,0.00027332]
[1740973239879,0.30073948,611.79,611.11,0.00027332]
[1740973240080,0.30073948,611.78,611.11,0.00027332]
[1740973240280,0.30073948,611.79,611.11,0.00027332]
[1740973240478,0.30073948,611.78,611.11,0.00027332]
[1740973240778,0.30073948,611.77,611.11,0.00027332]
[1740973240981,0.30073948,611.79,611.11,0.00027332]
[1740973241176,0.30073948,611.78,611.11,0.00027332]
[1740973241377,0.30073948,611.79,611.11,0.00027332]
[1740973241578,0.30073948,611.78,611.11,0.00027332]
[1740973241773,0.30073948,611.79,611.11,0.00027332]
[1740973241979,0.30073948,611.78,611.11,0.00027332]
[1740973242179,0.30073948,611.79,611.11,0.00027332]
[1740973242379,0.30073948,611.78,611.11,0.00027332]
[1740973242581,0.30073948,611.79,611.11,0.00027332]
[1740973242782,0.30073948,611.78,611.11,0.00027332]
[1740973243085,0.30073948,611.77,611.11,0.00027332]
[1740973243282,0.30073948,611.79,611.11,0.00027332]
[1740973244882,1.13,611.8,611.11,0.00027332]
[1740973245083,0.30076887,611.79,611.11,0.00027332]
[1740973246783,0.91,611.78,611.11,0.00027332]
[1740973246983,0.30076887,611.77,611.11,0.00027332]
[1740973251283,0.91,611.78,611.11,0.00027332]
[1740973251488,0.300728,611.77,611.11,0.00027332]
[1740973253282,0.91,611.78,611.11,0.00027332]
[1740973253486,0.30073148,611.77,611.11,0.00027332]
[1740973253889,1.218,611.76,611.11,0.00027332]
[1740973254092,0.30073148,611.75,611.11,0.00027332]
[1740973254490,1.218,611.76,611.11,0.00027332]
[1740973254690,0.30072417,611.75,611.11,0.00027332]
[1740973256791,1.218,611.76,611.11,0.00027332]
[1740973256994,0.30070779,611.75,611.11,0.00027332]
[1740973258496,0.30068811,611.74,611.11,0.00027332]
[1740973258695,1.218,611.76,611.11,0.00027332]
[1740973261292,1.125,611.75,611.11,0.00027332]
[1740973264199,0.30076304,611.74,611.11,0.00027332]
[1740973264698,1.125,611.75,611.11,0.00027332]
[1740973265003,0.30077011,611.74,611.11,0.00027332]
[1740973266404,0.30076375,611.73,611.11,0.00027332]
[1740973266606,0.30076375,611.72,611.11,0.00027332]
[1740973266806,0.30076375,611.74,611.11,0.00027332]
[1740973267105,0.30076375,611.73,611.11,0.00027332]
[1740973267307,0.30076375,611.72,611.11,0.00027332]
[1740973267504,1.125,611.75,611.11,0.00027332]
[1740973267505,0.30076375,611.74,611.11,0.00027332]
[1740973267703,0.30076375,611.73,611.11,0.00027332]
[1740973267900,0.30076375,611.72,611.11,0.00027332]
[1740973270106,1.242,611.73,611.11,0.00027332]
[1740973273403,0.30080358,611.72,611.11,0.00027332]
[1740973274611,1.242,611.73,610.53,1.21664196]
[1740973274910,0.30099802,611.72,610.53,1.21664196]
[1740973276110,1.573,611.71,610.53,1.21664196]
[1740973276310,0.30099802,611.7,610.53,1.21664196]
[1740973276507,0.30099802,611.7,610.0,1.21664196]
[1740973277414,0.30099802,611.7,610.02,0.3278581]
[1740973279215,1.42799802,611.7,610.02,0.3278581]
[1740973279412,1.127,611.7,610.02,0.3278581]
[1740973279610,0.30100068,611.69,610.02,0.3278581]
[1740973284417,0.30103881,611.68,610.02,0.3278581]
[1740973284716,0.30103881,611.67,610.02,0.3278581]
[1740973284918,0.30103881,611.66,610.02,0.3278581]
[1740973285113,0.30103881,611.65,610.02,0.3278581]
[1740973285315,0.30103881,611.64,610.02,0.3278581]
[1740973285516,0.30103881,611.63,610.02,0.3278581]
[1740973285716,0.30103881,611.62,610.02,0.3278581]
[1740973285914,0.30103881,611.61,610.02,0.3278581]
[1740973286117,0.30103881,611.6,610.02,0.3278581]
[1740973286317,1.127,611.7,610.02,0.3278581]
[1740973286318,0.30103881,611.59,610.02,0.3278581]
[1740973286514,0.30103881,611.58,610.02,0.3278581]
[1740973286720,0.30103881,611.57,610.02,0.3278581]
[1740973287019,1.127,611.7,610.02,0.3278581]
[1740973287020,0.30103881,611.56,610.02,0.3278581]
[1740973287218,0.30103881,611.55,610.02,0.3278581]
[1740973287419,0.30103881,611.54,610.02,0.3278581]
[1740973287622,1.127,611.7,610.02,0.3278581]
[1740973287623,0.30103881,611.69,610.02,0.3278581]
[1740973287816,0.30103881,611.68,610.02,0.3278581]
[1740973288014,0.30103881,611.67,610.02,0.3278581]
[1740973288321,1.38303881,611.66,610.02,0.3278581]
[1740973288519,0.30103881,611.65,610.02,0.3278581]
[1740973288720,0.30103881,611.64,610.02,0.3278581]
[1740973288920,0.30103881,611.63,610.02,0.3278581]
[1740973289119,1.082,611.66,610.02,0.3278581]
[1740973289321,0.30106421,611.65,610.02,0.3278581]
[1740973289521,0.30106421,611.64,610.02,0.3278581]
[1740973289721,0.30106421,611.63,610.02,0.3278581]
[1740973289920,0.30106421,611.62,610.02,0.3278581]
[1740973290122,0.30106421,611.61,610.02,0.3278581]
[1740973290321,1.082,611.66,610.02,0.3278581]